[Event "WYCC 2018 G16"]
[Site "Halkidiki"]
[Date "2018.10.22"]
[Round "4"]
[White "Gomez Barrera, Javiera Belen"]
[Black "Hajiyeva, Laman"]
[Result "0-1"]
[ECO "C11"]
[WhiteElo "2136"]
[BlackElo "1916"]
[Annotator "NA"]
[PlyCount "148"]
[EventDate "2018.10.20"]
[EventType "swiss"]
[EventCountry "GRE"]
[SourceTitle "playchess.com"]
[Source "ChessBase"]
[SourceQuality "1"]
[TimeControl "40/5400+30:1800+30"]

1. e4 {[%emt 0:00:00]} e6 {[%emt 0:00:00]} 2. d4 {[%emt 0:00:00]} d5 {[%emt 0:00:00]} 3. Nc3 {[%emt 0:00:00]} Nf6 {[%emt 0:00:00]} 4. e5 {[%emt 0:00:00]} Nfd7 {[%emt 0:00:00]} 5. Nce2 {[%emt 0:00:02]} c5 {[%emt 0:00:00]} 6. f4 {[%emt 0:00:06]} Nc6 {[%emt 0:00:03]} 7. c3 {[%emt 0:00:06]} Qb6 {[%emt 0:00:06]} 8. Nf3 {[%emt 0:01:06]} f6 {[%emt 0:00:21]} 9. h4 {[%emt 0:17:47]} cxd4 {[%emt 0:02:14]} 10. cxd4 {[%emt 0:01:48]} fxe5 {[%emt 0:02:32]} 11. fxe5 {[%emt 0:02:46]} Bb4+ {[%emt 0:02:36]} 12. Bd2 {[%emt 0:04:19]} O-O {[%emt 0:06:54]} 13. Bxb4 {[%emt 0:03:44]} Qxb4+ {[%emt 0:01:13]} 14. Qd2 {[%emt 0:00:48]} Nb6 {[%emt 0:11:15]} 15. b3 {[%emt 0:05:56]} a5 {[%emt 0:02:33]} 16. Rb1 {[%emt 0:15:18]} a4 $11 {[%emt 0:12:50]} 17. Qxb4 {[%emt 0:15:19]} Nxb4 {[%emt 0:00:04]} 18. Nc3 {[%emt 0:00:19]} a3 {[%emt 0:12:31]} 19. Kd2 {[%emt 0:02:02]} Bd7 {[%emt 0:02:31]} 20. Be2 {[%emt 0:09:33]} Nc8 {[%emt 0:04:19]} 21. g4 {[%emt 0:05:15]} Ne7 {[%emt 0:04:44]} 22. Rbc1 {[%emt 0:06:17]} Ng6 {[%emt 0:06:01]} 23. Ke3 {[%emt 0:01:05]} Nf4 {[%emt 0:04:45]} 24. Bf1 {[%emt 0:00:59]} h5 {[%emt 0:03:35]} 25. gxh5 {[%emt 0:01:22]} Be8 {[%emt 0:02:51]} 26. Rg1 {[%emt 0:05:19]} Bxh5 {[%emt 0:02:44]} 27. Ng5 {[%emt 0:00:05]} Rac8 {[%emt 0:04:20]} 28. Bb5 {[%emt 0:00:09]} Rc7 {[%emt 0:06:30]} 29. Rg3 {[%emt 0:00:29]} Rf5 {[%emt 0:02:20]} 30. Rgg1 {[%emt 0:01:58]} Nh3 {[%emt 0:01:04]} 31. Rg3 {[%emt 0:00:57]} Nxg5 {[%emt 0:00:49]} 32. hxg5 {[%emt 0:00:01]} Rcf7 {[%emt 0:00:48]} 33. Kd2 {[%emt 0:01:03]} Rf2+ {[%emt 0:00:22]} 34. Ne2 {[%emt 0:00:27]} Nc6 {[%emt 0:01:55]} 35. g6 {[%emt 0:00:28]} Rf8 {[%emt 0:00:22]} 36. Ke3 {[%emt 0:00:31]} Bxe2 {[%emt 0:00:44]} 37. Bxe2 {[%emt 0:00:10]} Nxd4 {[%emt 0:00:46]} 38. Kxd4 {[%emt 0:00:50]} Rxe2 {[%emt 0:00:01]} 39. Rc7 {[%emt 0:00:30]} Rxa2 {[%emt 0:01:03]} 40. Rxb7 {[%emt 0:00:00]} Re2 {[%emt 0:00:00]} 41. Ra7 {[%emt 0:04:22]} a2 {[%emt 0:08:33]} 42. b4 {[%emt 0:04:19]} Rc2 {[%emt 0:07:56]} 43. Rga3 {[%emt 0:11:14]} Rc4+ {[%emt 0:02:16]} 44. Kd3 {[%emt 0:00:18]} Rxb4 {[%emt 0:00:39]} 45. R7a6 {[%emt 0:10:08]} Rg4 {[%emt 0:05:22]} 46. Rxa2 {[%emt 0:00:29]} Rxg6 {[%emt 0:00:04]} 47. Kd4 {[%emt 0:00:10]} Rc8 {[%emt 0:00:51]} 48. Rh2 {[%emt 0:02:25]} Rc4+ {[%emt 0:03:39]} 49. Kd3 {[%emt 0:00:11]} Rg3+ {[%emt 0:00:28]} 50. Kd2 {[%emt 0:00:08]} Rb4 {[%emt 0:01:37]} 51. Kc2 {[%emt 0:00:26]} Rgb3 {[%emt 0:00:49]} 52. Rh5 {[%emt 0:01:33]} Kf7 {[%emt 0:00:35]} 53. Rh8 {[%emt 0:00:35]} Rb6 {[%emt 0:00:54]} 54. Ra7+ {[%emt 0:00:28]} Kg6 {[%emt 0:01:01]} 55. Re7 {[%emt 0:00:39]} Rf3 {[%emt 0:01:03]} 56. Rhe8 {[%emt 0:00:29]} Kf5 {[%emt 0:00:30]} 57. Rf8+ {[%emt 0:00:41]} Ke4 {[%emt 0:00:05]} 58. Rxf3 {[%emt 0:00:08]} Kxf3 {[%emt 0:00:01]} 59. Rxg7 {[%emt 0:01:06]} Kf4 {[%emt 0:00:04]} 60. Kd3 {[%emt 0:00:37]} Kxe5 {[%emt 0:00:11]} 61. Rg5+ {[%emt 0:00:35]} Kd6 {[%emt 0:00:05]} 62. Rg6 {[%emt 0:00:22]} Kc5 {[%emt 0:00:29]} 63. Ke3 {[%emt 0:00:18]} e5 {[%emt 0:00:18]} 64. Rg5 {[%emt 0:00:03]} Rb3+ {[%emt 0:00:04]} 65. Kd2 {[%emt 0:00:06]} Kd4 {[%emt 0:00:03]} 66. Rg4+ {[%emt 0:00:11]} e4 {[%emt 0:00:05]} 67. Kc2 {[%emt 0:00:12]} Rf3 {[%emt 0:00:26]} 68. Rg5 {[%emt 0:00:17]} Rf2+ {[%emt 0:00:06]} 69. Kd1 {[%emt 0:00:09]} e3 {[%emt 0:00:19]} 70. Ke1 {[%emt 0:00:12]} Ra2 {[%emt 0:00:26]} 71. Kd1 {[%emt 0:00:14]} Ke4 {[%emt 0:00:08]} 72. Rh5 {[%emt 0:01:44]} d4 {[%emt 0:00:09]} 73. Rc5 {[%emt 0:00:25]} Ra1+ {[%emt 0:00:18]} 74. Kc2 {[%emt 0:00:10]} e2 {[%emt 0:00:06]} 0-1

[Event "WYCC 2018 G16"]
[Site "Halkidiki"]
[Date "2018.10.22"]
[Round "4"]
[White "Cervantes Landeiro, Thalia"]
[Black "Makhija, Aashna"]
[Result "1-0"]
[ECO "E21"]
[WhiteElo "2129"]
[BlackElo "2197"]
[Annotator "NA"]
[PlyCount "55"]
[EventDate "2018.10.20"]
[EventType "swiss"]
[EventCountry "GRE"]
[SourceTitle "playchess.com"]
[Source "ChessBase"]
[SourceQuality "1"]
[TimeControl "40/5400+30:1800+30"]

1. d4 {[%emt 0:00:00]} Nf6 {[%emt 0:00:00]} 2. c4 {[%emt 0:00:00]} e6 {[%emt 0:00:00]} 3. Nc3 {[%emt 0:00:00]} Bb4 {[%emt 0:00:03]} 4. Nf3 {[%emt 0:00:26]} O-O {[%emt 0:00:22]} 5. Bg5 {[%emt 0:00:11]} c5 {[%emt 0:00:32]} 6. e3 {[%emt 0:03:42]} cxd4 {[%emt 0:03:31]} 7. exd4 {[%emt 0:00:10]} d5 {[%emt 0:00:47]} 8. cxd5 {[%emt 0:09:38]} Qa5 {[%emt 0:10:35]} 9. Bd2 {[%emt 0:05:18]} Nxd5 {[%emt 0:05:43]} 10. a3 {[%emt 0:04:05]} Bxc3 {[%emt 0:03:56]} 11. bxc3 {[%emt 0:00:14]} Qc7 {[%emt 0:03:09]} 12. c4 {[%emt 0:03:39]} Nf6 {[%emt 0:03:42]} 13. Bd3 {[%emt 0:00:34]} b6 {[%emt 0:03:35]} 14. O-O {[%emt 0:03:41]} Nbd7 {[%emt 0:02:37]} 15. a4 {[%emt 0:07:05]} Bb7 {[%emt 0:04:13]} 16. Re1 {[%emt 0:10:07]} Rfd8 {[%emt 0:21:48]} 17. Qe2 {[%emt 0:05:10]} h6 {[%emt 0:06:12]} 18. a5 {[%emt 0:12:44]} Bc6 {[%emt 0:05:39]} 19. h3 {[%emt 0:04:53]} Qb7 {[%emt 0:05:22]} 20. a6 {[%emt 0:02:09]} Qc7 {[%emt 0:00:47]} 21. Qe3 {[%emt 0:07:30]} Kh8 {[%emt 0:04:18]} 22. Rac1 {[%emt 0:02:40]} Rac8 {[%emt 0:06:12]} 23. Bc3 {[%emt 0:05:07]} Qb8 {[%emt 0:04:48]} 24. d5 {[%emt 0:01:41]} exd5 {[%emt 0:01:18]} 25. Ne5 {[%emt 0:01:10]} Kg8 {[%emt 0:02:10]} 26. Nxf7 {[%emt 0:03:53]} Kxf7 {[%emt 0:01:03]} 27. Qe6+ {[%emt 0:00:33]} Kf8 {[%emt 0:00:12]} 28. Bg6 {[%emt 0:00:08]} 1-0

[Event "WYCC 2018 G16"]
[Site "Halkidiki"]
[Date "2018.10.22"]
[Round "4"]
[White "Ouellet, Maili-Jade"]
[Black "Golsta, Ramona"]
[Result "1-0"]
[ECO "D32"]
[WhiteElo "2122"]
[BlackElo "1681"]
[Annotator "NA"]
[PlyCount "45"]
[EventDate "2018.10.20"]
[EventType "swiss"]
[EventCountry "GRE"]
[SourceTitle "playchess.com"]
[Source "ChessBase"]
[SourceQuality "1"]
[TimeControl "40/5400+30:1800+30"]

1. d4 {[%emt 0:00:00]} d5 {[%emt 0:00:00]} 2. c4 {[%emt 0:00:00]} e6 {[%emt 0:00:00]} 3. Nc3 {[%emt 0:00:00]} c5 {[%emt 0:00:17]} 4. e3 {[%emt 0:00:00]} Nc6 {[%emt 0:02:47]} 5. Nf3 {[%emt 0:00:00]} Nf6 {[%emt 0:00:31]} 6. a3 {[%emt 0:00:00]} a6 {[%emt 0:06:13]} 7. dxc5 {[%emt 0:00:05]} Bxc5 {[%emt 0:07:51]} 8. b4 {[%emt 0:00:06]} Be7 {[%emt 0:02:05]} 9. Bb2 {[%emt 0:00:35]} O-O {[%emt 0:01:30]} 10. Qc2 {[%emt 0:03:20]} dxc4 {[%emt 0:04:13]} 11. Bxc4 {[%emt 0:00:34]} b5 {[%emt 0:01:12]} 12. Bd3 {[%emt 0:04:25]} Bb7 {[%emt 0:06:46]} 13. O-O {[%emt 0:02:48]} Rc8 {[%emt 0:02:16]} 14. Rfd1 {[%emt 0:00:33]} Qc7 {[%emt 0:00:35]} 15. Rac1 {[%emt 0:01:28]} h6 {[%emt 0:11:46]} 16. Ne4 {[%emt 0:12:56]} Nxe4 {[%emt 0:04:59]} 17. Bxe4 {[%emt 0:00:06]} Qb6 {[%emt 0:02:37]} 18. Qe2 {[%emt 0:06:28]} Rfd8 $14 {[%emt 0:06:40]} 19. Nd4 {[%emt 0:09:48]} Bf6 {[%emt 0:04:37]} 20. Nxc6 {[%emt 0:06:28]} Rxd1+ {[%emt 0:05:04]} 21. Qxd1 {[%emt 0:04:46]} Bxc6 {[%emt 0:05:30]} 22. Bxf6 {[%emt 0:00:17]} gxf6 {[%emt 0:00:35]} 23. Qd6 {[%emt 0:01:11]} 1-0

[Event "WYCC 2018 G16"]
[Site "Halkidiki"]
[Date "2018.10.22"]
[Round "4"]
[White "Palma, Maria"]
[Black "Sabiani, Chjara"]
[Result "1-0"]
[ECO "A16"]
[WhiteElo "2106"]
[BlackElo "1778"]
[Annotator "NA"]
[PlyCount "73"]
[EventDate "2018.10.20"]
[EventType "swiss"]
[EventCountry "GRE"]
[SourceTitle "playchess.com"]
[Source "ChessBase"]
[SourceQuality "1"]
[TimeControl "40/5400+30:1800+30"]

1. c4 {[%emt 0:00:00]} Nf6 {[%emt 0:00:00]} 2. Nc3 {[%emt 0:00:00]} g6 {[%emt 0:00:00]} 3. g3 {[%emt 0:00:02]} Bg7 {[%emt 0:00:01]} 4. Bg2 {[%emt 0:00:06]} O-O {[%emt 0:00:04]} 5. e3 {[%emt 0:00:20]} d6 {[%emt 0:00:46]} 6. Nge2 {[%emt 0:00:24]} e5 {[%emt 0:04:00]} 7. d3 {[%emt 0:01:04]} c6 {[%emt 0:00:27]} 8. O-O {[%emt 0:02:39]} Be6 {[%emt 0:01:47]} 9. b3 {[%emt 0:07:05]} Qd7 {[%emt 0:01:49]} 10. Ba3 {[%emt 0:14:40]} Bh3 {[%emt 0:04:00]} 11. d4 {[%emt 0:05:56]} Bxg2 {[%emt 0:06:19]} 12. Kxg2 {[%emt 0:00:49]} e4 {[%emt 0:00:37]} 13. Rc1 {[%emt 0:06:18]} Bh6 {[%emt 0:05:22]} 14. b4 {[%emt 0:07:43]} d5 {[%emt 0:06:58]} 15. b5 {[%emt 0:04:24]} Re8 {[%emt 0:08:31]} 16. Qb3 {[%emt 0:07:28]} Qg4 {[%emt 0:05:38]} 17. Ng1 {[%emt 0:06:26]} dxc4 {[%emt 0:05:54]} 18. Qxc4 {[%emt 0:00:41]} Qh5 {[%emt 0:03:18]} 19. bxc6 bxc6 {[%emt 0:11:59]} 20. Rb1 {[%emt 0:16:10]} Nd5 {[%emt 0:05:05]} 21. Nxd5 {[%emt 0:02:22]} Qxd5 {[%emt 0:00:37]} 22. Rfc1 {[%emt 0:02:10]} Rd8 {[%emt 0:04:08]} 23. Rb7 {[%emt 0:05:48]} Rd7 {[%emt 0:05:59]} 24. Qxd5 {[%emt 0:05:03]} Rxd5 {[%emt 0:01:43]} 25. Rc7 {[%emt 0:00:12]} Nd7 {[%emt 0:07:27]} 26. R1xc6 {[%emt 0:01:46]} Nb6 {[%emt 0:02:56]} 27. Bc5 {[%emt 0:01:34]} Bf8 {[%emt 0:01:27]} 28. Ne2 {[%emt 0:00:40]} Na4 {[%emt 0:01:56]} 29. Bxf8 {[%emt 0:01:02]} Kxf8 {[%emt 0:00:11]} 30. Ra6 {[%emt 0:00:27]} Nb2 {[%emt 0:00:44]} 31. Nc3 {[%emt 0:00:40]} Rf5 {[%emt 0:00:30]} 32. Nxe4 {[%emt 0:00:29]} Nd1 {[%emt 0:01:00]} 33. g4 {[%emt 0:00:43]} Rb5 {[%emt 0:00:35]} 34. Rf6 {[%emt 0:00:12]} Nxe3+ {[%emt 0:01:49]} 35. fxe3 {[%emt 0:00:07]} Rb2+ {[%emt 0:00:06]} 36. Kg3 {[%emt 0:00:23]} Rxa2 {[%emt 0:00:05]} 37. Rfxf7+ {[%emt 0:00:04]} 1-0

[Event "WYCC 2018 G16"]
[Site "Halkidiki"]
[Date "2018.10.22"]
[Round "4"]
[White "Kucharska, Honorata"]
[Black "Nayberg, Simona"]
[Result "1-0"]
[ECO "B03"]
[WhiteElo "2073"]
[BlackElo "1857"]
[Annotator "NA"]
[PlyCount "87"]
[EventDate "2018.10.20"]
[EventType "swiss"]
[EventCountry "GRE"]
[SourceTitle "playchess.com"]
[Source "ChessBase"]
[SourceQuality "1"]
[TimeControl "40/5400+30:1800+30"]

1. e4 {[%emt 0:00:00]} Nf6 {[%emt 0:00:00]} 2. e5 {[%emt 0:00:00]} Nd5 {[%emt 0:00:00]} 3. c4 {[%emt 0:00:00]} Nb6 {[%emt 0:00:00]} 4. d4 {[%emt 0:00:00]} d6 {[%emt 0:00:06]} 5. exd6 {[%emt 0:00:23]} exd6 {[%emt 0:00:30]} 6. Bd3 {[%emt 0:00:35]} Nc6 {[%emt 0:00:48]} 7. Ne2 {[%emt 0:00:21]} Be7 {[%emt 0:00:46]} 8. O-O {[%emt 0:01:34]} O-O {[%emt 0:01:09]} 9. Nbc3 {[%emt 0:00:57]} Bf6 {[%emt 0:00:40]} 10. Be3 {[%emt 0:01:56]} Nb4 {[%emt 0:01:07] B03: Aljechin-Verteidigung (Vierbauernvariante)} 11. b3 {[%emt 0:03:10]} (11. Ng3 d5 12. c5 Nc4 13. Bb1 Nc6 14. Qh5 g6 15. Qxd5 Be6 16. Qxd8 Raxd8 17. Be4 Nxd4 18. Bxb7 {0-1 (73) Ganguly,S (2613)-Shimanov,A (2606) St Petersburg 2014}) 11... Re8 {[%emt 0:06:26]} 12. Bb1 {[%emt 0:02:13]} c6 {[%emt 0:05:01]} 13. a3 $146 {[%emt 0:08:03]} ({Vorgänger:} 13. Qd2 d5 14. c5 Nd7 15. a3 {0-1 (47) Suito Nakasone,C (1946)-Nayberg,S (1749) Montevideo 2017}) 13... Na6 {[%emt 0:00:06]} 14. Ra2 {[%emt 0:02:33]} d5 {[%emt 0:03:46]} 15. c5 {[%emt 0:03:33]} Nd7 {[%emt 0:00:07]} 16. b4 {[%emt 0:04:08]} Nc7 {[%emt 0:02:41]} 17. a4 {[%emt 0:06:01]} Ne6 {[%emt 0:06:54]} 18. Ng3 {[%emt 0:09:07]} g6 {[%emt 0:02:28]} 19. Qd3 {[%emt 0:03:03]} Ng7 {[%emt 0:11:37]} 20. b5 {[%emt 0:09:21]} Nf8 {[%emt 0:07:36]} 21. Qd2 {[%emt 0:01:49]} Nge6 {[%emt 0:02:33]} 22. Nce2 {[%emt 0:00:53]} Qe7 {[%emt 0:06:15]} 23. Rb2 {[%emt 0:06:22]} Bd7 {[%emt 0:07:26]} 24. Rb3 {[%emt 0:00:46]} Reb8 {[%emt 0:02:46]} 25. Bd3 {[%emt 0:04:23]} b6 {[%emt 0:03:04]} 26. bxc6 {[%emt 0:07:27]} Bxc6 {[%emt 0:00:33]} 27. Rfb1 {[%emt 0:00:15]} Nd7 {[%emt 0:01:19]} 28. cxb6 {[%emt 0:02:28]} axb6 {[%emt 0:04:31]} 29. Bb5 {[%emt 0:00:51]} Bxb5 $14 {[%emt 0:02:12]} 30. Rxb5 {[%emt 0:00:30]} Rxa4 {[%emt 0:00:35]} 31. Nc3 {[%emt 0:00:06]} Ra6 {[%emt 0:07:43]} 32. Nxd5 {[%emt 0:00:14]} Qd6 {[%emt 0:00:22]} 33. Ne4 {[%emt 0:00:20]} Qa3 {[%emt 0:03:50]} 34. Nexf6+ {[%emt 0:00:28]} Nxf6 {[%emt 0:00:07]} 35. Nxf6+ {[%emt 0:00:12]} Kg7 {[%emt 0:00:18]} 36. Ne4 {[%emt 0:00:26]} Rc8 {[%emt 0:02:52]} 37. d5 {[%emt 0:00:46]} Nc7 {[%emt 0:00:54]} 38. Qd4+ {[%emt 0:00:46]} f6 {[%emt 0:01:27]} 39. Qxf6+ {[%emt 0:01:13]} Kg8 {[%emt 0:00:02]} 40. Bh6 {[%emt 0:00:00]} Ne8 {[%emt 0:00:00]} 41. Qe6+ {[%emt 0:00:48]} Kh8 {[%emt 0:01:03]} 42. Qxc8 {[%emt 0:00:11]} Ra8 {[%emt 0:00:35]} 43. Qc3+ {[%emt 0:00:12]} Qxc3 {[%emt 0:01:07]} 44. Nxc3 1-0

[Event "WYCC 2018 G16"]
[Site "Halkidiki"]
[Date "2018.10.22"]
[Round "4"]
[White "Meenal Gupta"]
[Black "Kalyva, Kyriaki"]
[Result "1-0"]
[ECO "B30"]
[WhiteElo "2065"]
[BlackElo "1779"]
[Annotator "NA"]
[PlyCount "115"]
[EventDate "2018.10.20"]
[EventType "swiss"]
[EventCountry "GRE"]
[SourceTitle "playchess.com"]
[Source "ChessBase"]
[SourceQuality "1"]
[TimeControl "40/5400+30:1800+30"]

1. e4 {[%emt 0:00:00]} c5 {[%emt 0:00:13]} 2. Nf3 {[%emt 0:00:00]} Nc6 {[%emt 0:00:05]} 3. Bb5 {[%emt 0:00:00]} d6 {[%emt 0:00:17]} 4. Bxc6+ {[%emt 0:00:24]} bxc6 {[%emt 0:00:05]} 5. O-O {[%emt 0:00:12]} e5 {[%emt 0:03:55]} 6. Re1 {[%emt 0:02:52]} Nf6 {[%emt 0:04:07]} 7. d3 {[%emt 0:06:39]} Be7 {[%emt 0:01:09]} 8. c3 {[%emt 0:03:41]} Bg4 {[%emt 0:04:12]} 9. Nbd2 {[%emt 0:00:30]} O-O {[%emt 0:00:38]} 10. b3 {[%emt 0:06:35]} Re8 {[%emt 0:11:44]} 11. Nf1 Qc7 {[%emt 0:09:23]} 12. h3 {[%emt 0:05:23]} Bh5 {[%emt 0:00:38]} 13. Ng3 {[%emt 0:00:46]} Bg6 {[%emt 0:00:20]} 14. Nh4 {[%emt 0:05:21]} d5 {[%emt 0:06:26]} 15. Nhf5 {[%emt 0:04:24]} Bf8 {[%emt 0:01:51]} 16. Qf3 {[%emt 0:07:29]} Qa5 {[%emt 0:07:50]} 17. Bb2 {[%emt 0:01:24]} c4 {[%emt 0:07:04]} 18. dxc4 {[%emt 0:08:20]} dxc4 {[%emt 0:00:56]} 19. b4 {[%emt 0:00:04]} Qb5 {[%emt 0:02:36]} 20. a4 {[%emt 0:04:29]} Qb7 {[%emt 0:01:27]} 21. Qe2 {[%emt 0:06:25]} a5 {[%emt 0:03:40]} 22. Qxc4 {[%emt 0:05:04]} axb4 {[%emt 0:00:47]} 23. Ne3 {[%emt 0:00:20]} Ra5 {[%emt 0:10:20]} 24. Qb3 {[%emt 0:03:41]} Rb8 {[%emt 0:06:43]} 25. Re2 {[%emt 0:07:10]} Qa6 {[%emt 0:01:34]} 26. Nc2 {[%emt 0:04:07]} Nxe4 {[%emt 0:02:57]} 27. Rxe4 {[%emt 0:00:18]} Bxe4 {[%emt 0:00:05]} 28. Nxe4 {[%emt 0:00:04]} c5 {[%emt 0:00:22]} 29. cxb4 {[%emt 0:04:37]} cxb4 {[%emt 0:00:31]} 30. Rd1 {[%emt 0:03:31]} h6 {[%emt 0:02:42]} 31. Ne3 {[%emt 0:02:02]} Qc6 {[%emt 0:00:32]} 32. Nc4 {[%emt 0:01:25]} Ra7 {[%emt 0:02:25]} 33. Bxe5 {[%emt 0:01:36]} Re8 {[%emt 0:00:29]} 34. Bd4 {[%emt 0:02:26]} Rc7 {[%emt 0:01:21]} 35. Ncd2 {[%emt 0:01:12]} Qc2 {[%emt 0:00:24]} 36. Qxc2 {[%emt 0:00:24]} Rxc2 {[%emt 0:00:06]} 37. f3 {[%emt 0:00:22]} Rd8 {[%emt 0:04:22]} 38. Bb6 {[%emt 0:01:56]} Rd3 {[%emt 0:00:57]} 39. g4 {[%emt 0:00:42]} b3 {[%emt 0:01:22]} 40. Kf2 {[%emt 0:00:00]} Bb4 {[%emt 0:00:00]} 41. Ke2 {[%emt 0:01:25]} Rd7 {[%emt 0:02:27]} 42. Be3 {[%emt 0:05:36]} b2 {[%emt 0:02:09]} 43. Rb1 {[%emt 0:00:02]} Kf8 {[%emt 0:05:55]} 44. Kd1 {[%emt 0:02:25]} Rdc7 {[%emt 0:01:07]} 45. Nb3 {[%emt 0:00:04]} Rh2 {[%emt 0:02:02]} 46. Bc5+ {[%emt 0:00:42]} Kg8 {[%emt 0:00:38]} 47. Bxb4 {[%emt 0:00:50]} Rc4 {[%emt 0:06:01]} 48. Bd2 {[%emt 0:03:25]} Rxh3 {[%emt 0:03:07]} 49. Rxb2 {[%emt 0:01:50]} Rxa4 {[%emt 0:01:30]} 50. Ke2 {[%emt 0:00:47]} Ra6 {[%emt 0:04:07]} 51. Nbc5 {[%emt 0:00:44]} Rc6 {[%emt 0:00:20]} 52. Rb8+ {[%emt 0:01:20]} Kh7 {[%emt 0:00:11]} 53. Nd7 {[%emt 0:00:08]} f6 {[%emt 0:03:07]} 54. Nf8+ {[%emt 0:00:41]} Kg8 {[%emt 0:00:15]} 55. Ne6+ {[%emt 0:00:12]} Kh7 {[%emt 0:00:08]} 56. Nf4 {[%emt 0:01:12]} Rh1 {[%emt 0:02:02]} 57. Rb7 {[%emt 0:00:32]} Ra6 {[%emt 0:02:30]} 58. Bc3 {[%emt 0:00:40]} 1-0

[Event "WYCC 2018 G16"]
[Site "Halkidiki"]
[Date "2018.10.22"]
[Round "4"]
[White "Sankova, Stella"]
[Black "Nemcova, Karin"]
[Result "1/2-1/2"]
[ECO "B01"]
[WhiteElo "2051"]
[BlackElo "1888"]
[Annotator "NA"]
[PlyCount "111"]
[EventDate "2018.10.20"]
[EventType "swiss"]
[EventCountry "GRE"]
[SourceTitle "playchess.com"]
[Source "ChessBase"]
[SourceQuality "1"]
[TimeControl "40/5400+30:1800+30"]

1. e4 {[%emt 0:00:00]} d5 {[%emt 0:00:00]} 2. exd5 {[%emt 0:00:00]} Qxd5 {[%emt 0:00:00]} 3. Nc3 {[%emt 0:00:00]} Qd6 {[%emt 0:00:00]} 4. d4 {[%emt 0:00:00]} Nf6 $16 {[%emt 0:00:00] LiveBook: 3515 Games} 5. Nf3 {[%emt 0:00:28]} c6 {[%emt 0:00:07]} 6. Ne5 {[%emt 0:00:19]} Nbd7 {[%emt 0:00:10]} 7. Nc4 {[%emt 0:00:07]} Qc7 {[%emt 0:00:07]} 8. Qf3 {[%emt 0:00:19]} Nb6 {[%emt 0:00:10]} 9. Bf4 {[%emt 0:00:05]} Qd7 {[%emt 0:00:08]} 10. Be5 {[%emt 0:00:36]} Qg4 {[%emt 0:02:27]} 11. Qe3 {[%emt 0:00:10]} Nfd5 {[%emt 0:08:14]} 12. Nxd5 {[%emt 0:00:07]} Nxd5 {[%emt 0:00:26]} 13. Qd2 {[%emt 0:00:04]} Bf5 {[%emt 0:18:58]} 14. Be2 {[%emt 0:02:36]} Qg6 {[%emt 0:14:22]} 15. O-O-O {[%emt 0:01:11]} f6 {[%emt 0:08:11]} 16. Bg3 {[%emt 0:06:56]} h5 {[%emt 0:04:44]} 17. h4 {[%emt 0:04:05]} Qh6 {[%emt 0:06:35]} 18. Ne3 {[%emt 0:16:54]} Nxe3 {[%emt 0:03:22]} 19. fxe3 {[%emt 0:00:04]} O-O-O {[%emt 0:03:15]} 20. Bf4 {[%emt 0:03:18]} g5 {[%emt 0:12:19]} 21. hxg5 {[%emt 0:01:45]} fxg5 {[%emt 0:00:18]} 22. Rxh5 {[%emt 0:07:01]} Qe6 {[%emt 0:05:54]} 23. Rxh8 {[%emt 0:09:44]} gxf4 {[%emt 0:00:14]} 24. exf4 {[%emt 0:02:57]} Qxa2 {[%emt 0:00:18]} 25. Qc3 {[%emt 0:01:06]} e5 {[%emt 0:02:24]} 26. fxe5 {[%emt 0:03:35]} Be7 {[%emt 0:01:47]} 27. Rxd8+ {[%emt 0:00:56]} Bxd8 {[%emt 0:00:21]} 28. Qa3 {[%emt 0:15:55]} Bg5+ {[%emt 0:02:00]} 29. Rd2 {[%emt 0:00:05]} Qg8 {[%emt 0:00:53]} 30. Bf3 {[%emt 0:02:58]} Qh8 {[%emt 0:01:15]} 31. Bd1 {[%emt 0:02:36]} Qh6 {[%emt 0:00:47]} 32. Qb4 {[%emt 0:04:03]} Be3 {[%emt 0:01:36]} 33. Qc3 {[%emt 0:03:36]} Kb8 {[%emt 0:02:20]} 34. g4 {[%emt 0:00:34]} Be4 {[%emt 0:00:24]} 35. b3 {[%emt 0:01:44]} Bg5 {[%emt 0:00:38]} 36. Be2 {[%emt 0:01:19]} a6 {[%emt 0:00:50]} 37. Qb4 {[%emt 0:04:24]} Ka8 {[%emt 0:00:18]} 38. c4 {[%emt 0:01:58]} Qh1+ {[%emt 0:01:15]} 39. Bd1 {[%emt 0:00:19]} Qe1 {[%emt 0:01:08]} 40. Qc3 {[%emt 0:00:00]} Be3 {[%emt 0:00:00]} 41. b4 {[%emt 0:13:41]} Bf3 {[%emt 0:02:03]} 42. Kc2 {[%emt 0:00:24]} Be4+ {[%emt 0:05:12]} 43. Rd3 {[%emt 0:02:43]} Qf2+ {[%emt 0:03:28]} 44. Kb3 {[%emt 0:00:47]} Bxd3 {[%emt 0:00:31]} 45. Qxd3 {[%emt 0:00:07]} Bxd4 {[%emt 0:00:20]} 46. Be2 {[%emt 0:08:51]} Bxe5 {[%emt 0:01:40]} 47. b5 {[%emt 0:02:18]} Qd4 {[%emt 0:01:41]} 48. Qxd4 {[%emt 0:01:16]} Bxd4 {[%emt 0:00:01]} 49. bxa6 {[%emt 0:01:56]} bxa6 {[%emt 0:00:06]} 50. Kb4 {[%emt 0:02:43]} c5+ {[%emt 0:01:00]} 51. Ka5 {[%emt 0:00:55]} Ka7 {[%emt 0:00:13]} 52. g5 {[%emt 0:00:28]} Bc3+ {[%emt 0:00:16]} 53. Ka4 {[%emt 0:00:04]} Kb6 {[%emt 0:00:15]} 54. Bf3 {[%emt 0:00:32]} Bd4 {[%emt 0:00:27]} 55. g6 {[%emt 0:00:13]} Be5 {[%emt 0:00:38]} 56. Bd5 {[%emt 0:00:38]} 1/2-1/2